fUSD/lending_fUSD_20240419
["ID","MTS","AMOUNT","RATE_DAILY","PERIOD"]
[322907156,1713492647751,-1348.28,0.00016438,2]
[322907157,1713492647760,-582.84,0.00016438,2]
[322907158,1713492647770,-586.01,0.00016438,2]
[322907159,1713492647778,-500.0,0.00016438,2]
[322907160,1713492647788,-2234.51,0.00016438,2]
[322907161,1713492647797,-500.0,0.00016438,2]
[322907162,1713492647806,-500.0,0.00016438,2]
[322907163,1713492647815,-1006.14,0.00016438,2]
[322907164,1713492647825,-993.41,0.00016438,2]
[322907165,1713492647948,-500.0,0.00016438,2]
[322907166,1713492647958,-612.56,0.00016438,2]
[322907167,1713492647967,-500.0,0.00016438,2]
[322907168,1713492647976,-2000.0,0.00016438,2]
[322907169,1713492647986,-4475.54,0.00016438,2]
[322907170,1713492647995,-1098.1,0.00016438,2]
[322907171,1713492648004,-2812.56,0.00016438,2]
[322907172,1713492648013,-2055.45,0.00016438,2]
[322907173,1713492648022,-500.0,0.00016438,2]
[322907174,1713492648032,-620.96,0.00016438,2]
[322907175,1713492648041,-500.0,0.00016438,2]
[322907176,1713492648050,-500.0,0.00016438,2]
[322907177,1713492648059,-2988.56,0.00016438,2]
[322907178,1713492648068,-500.0,0.00016438,2]
[322907179,1713492648077,-500.0,0.00016438,2]
[322907180,1713492648087,-318.80405612,0.00016438,2]
[322907181,1713492648096,-500.0,0.00016438,2]
[322907182,1713492648105,-577.8,0.00016438,2]
[322907183,1713492648116,-500.0,0.00016438,2]
[322907184,1713492648125,-500.0,0.00016438,2]
[322907185,1713492648134,-2119.23,0.00016438,2]
[322907186,1713492648145,-3120.61,0.00016438,2]
[322907187,1713492648154,-500.0,0.00016438,2]
[322907188,1713492648165,-500.0,0.00016438,2]
[322907189,1713492648175,-500.0,0.00016438,2]
[322907190,1713492648185,-500.0,0.00016438,2]
[322907191,1713492648194,-500.0,0.00016438,2]
[322907192,1713492648204,-4692.02,0.00016438,2]
[322907193,1713492648213,-498.63538011,0.00016438,2]
[322907194,1713492648222,-500.0,0.00016438,2]
[322907195,1713492648231,-899.17,0.00016438,2]
[322907196,1713492648241,-500.0,0.00016438,2]
[322907197,1713492648250,-534.94395549,0.00016438,2]
[322907198,1713492648261,-500.0,0.00016438,2]
[322907199,1713492648270,-5600.07,0.00016438,2]
[322907200,1713492648280,-1776.95,0.00016438,2]
[322907201,1713492648289,-503.5664364,0.00016438,2]
[322907202,1713492648298,-1143.9,0.00016438,2]
[322907203,1713492648308,-695.61,0.00016438,2]
[322907204,1713492648317,-500.0,0.00016438,2]
[322907205,1713492648326,-500.0,0.00016438,2]
[322907206,1713492648337,-500.0,0.00016438,2]
[322907207,1713492648346,-500.0,0.00016438,2]
[322907208,1713492648355,-500.0,0.00016438,2]
[322907209,1713492648364,-500.0,0.00016438,2]
[322907210,1713492648373,-500.0,0.00016438,2]
[322907211,1713492648382,-3083.78,0.00016438,2]
[322907212,1713492648397,-557.69241897,0.00016438,2]
[322907213,1713492648406,-500.0,0.00016438,2]
[322907214,1713492648416,-1064.53,0.00016438,2]
[322907215,1713492648427,-1320.66,0.00016438,2]
[322907216,1713492648437,-2099.33,0.00016438,2]
[322907217,1713492648446,-638.85,0.00016438,2]
[322907218,1713492648455,-500.0,0.00016438,2]
[322907219,1713492648464,-500.0,0.00016438,2]
[322907220,1713492648473,-1220.89,0.00016438,2]
[322907221,1713492648482,-500.0,0.00016438,2]
[322907222,1713492648491,-1234.93,0.00016438,2]
[322907223,1713492648500,-628.11337542,0.00016438,2]
[322907224,1713492648509,-500.0,0.00016438,2]
[322907225,1713492648518,-500.0,0.00016438,2]
[322907226,1713492648527,-500.0,0.00016438,2]
[322907227,1713492648537,-500.0,0.00016438,2]
[322907228,1713492648547,-1664.33,0.00016438,2]
[322907229,1713492648556,-500.0,0.00016438,2]
[322907230,1713492648566,-500.0,0.00016438,2]
[322907231,1713492648575,-2686.78,0.00016438,2]
[322907232,1713492648584,-925.14,0.00016438,2]
[322907233,1713492648595,-500.0,0.00016438,2]
[322907234,1713492648604,-1840.54,0.00016438,2]
[322907235,1713492648613,-500.0,0.00016438,2]
[322907236,1713492648622,-500.0,0.00016438,2]
[322907237,1713492648632,-592.88,0.00016438,2]
[322907238,1713492648644,-500.0,0.00016438,2]
[322907239,1713492648653,-500.0,0.00016438,2]
[322907240,1713492648662,-756.63,0.00016438,2]
[322907241,1713492648671,-794.21,0.00016438,2]
[322907242,1713492648680,-500.0,0.00016438,2]
[322907243,1713492648689,-1360.45,0.00016438,2]
[322907244,1713492648698,-4538.0,0.00016438,2]
[322907245,1713492648708,-500.0,0.00016438,2]
[322907246,1713492648717,-500.0,0.00016438,2]
[322907247,1713492648726,-500.0,0.00016438,2]
[322907248,1713492648735,-500.0,0.00016438,2]
[322907249,1713492648744,-500.0,0.00016438,2]
[322907250,1713492648753,-500.0,0.00016438,2]
[322907251,1713492648762,-440.49416824,0.00016438,2]
[322907252,1713492648771,-4470.56,0.00016438,2]
[322907253,1713492648781,-500.0,0.00016438,2]
[322907254,1713492648790,-500.0,0.00016438,2]
[322907255,1713492648798,-500.0,0.00016438,2]
[322907256,1713492648808,-3291.11,0.00016438,2]
[322907257,1713492648817,-500.0,0.00016438,2]
[322907258,1713492648827,-288.75349191,0.00016438,2]
[322907259,1713492648836,-177.30762787,0.00016438,2]
[322907260,1713492648845,-3598.98,0.00016438,2]
[322907261,1713492648854,-508.28487677,0.00016438,2]
[322907262,1713492648863,-1030.29,0.00016438,2]
[322907263,1713492648873,-1686.78,0.00016438,2]
[322907264,1713492648881,-947.96,0.00016438,2]
[322907265,1713492648896,-500.0,0.00016438,2]
[322907266,1713492648905,-1015.15,0.00016438,2]
[322907267,1713492648914,-162.68693153,0.00016438,2]
[322907268,1713492648924,-500.0,0.00016438,2]
[322907269,1713492648934,-500.0,0.00016438,2]
[322907270,1713492648943,-2526.37,0.00016438,2]
[322907271,1713492648952,-2049.09,0.00016438,2]
[322907272,1713492648961,-500.0,0.00016438,2]
[322907273,1713492648971,-972.28741033,0.00016438,2]
[322907274,1713492648979,-500.0,0.00016438,2]
[322907275,1713492648988,-686.35,0.00016438,2]
[322907276,1713492648997,-500.0,0.00016438,2]
[322907277,1713492649006,-162.97479026,0.00016438,2]
[322907278,1713492649015,-500.0,0.00016438,2]
[322907279,1713492649025,-500.0,0.00016438,2]
[322907280,1713492649035,-500.0,0.00016438,2]
[322907281,1713492649046,-610.44,0.00016438,2]
[322907282,1713492649055,-3648.42,0.00016438,2]
[322907283,1713492649065,-450.0,0.00016438,2]
[322907284,1713492649074,-500.0,0.00016438,2]
[322907285,1713492649083,-500.0,0.00016438,2]
[322907286,1713492649093,-500.0,0.00016438,2]
[322907287,1713492649102,-1667.4,0.00016438,2]
[322907288,1713492649114,-5638.41,0.00016438,2]
[322907289,1713492649124,-521.98,0.00016438,2]
[322907290,1713492649133,-302.16066656,0.00016438,2]
[322907291,1713492649149,-500.0,0.00016438,2]
[322907292,1713492649159,-971.5,0.00016438,2]
[322907293,1713492649168,-6285.34,0.00016438,2]
[322907294,1713492649178,-500.0,0.00016438,2]
[322907295,1713492649187,-500.0,0.00016438,2]
[322907296,1713492649197,-554.08,0.00016438,2]
[322907297,1713492649206,-2587.78,0.00016438,2]
[322907298,1713492649216,-576.39205073,0.00016438,2]
[322907299,1713492649225,-3223.44,0.00016438,2]
[322907300,1713492649235,-500.73,0.00016438,2]
[322907301,1713492649244,-1435.63,0.00016438,2]
[322907302,1713492649253,-3137.25,0.00016438,2]
[322907303,1713492649265,-500.0,0.00016438,2]
[322907304,1713492649275,-500.0,0.00016438,2]
[322907305,1713492649284,-836.12,0.00016438,2]
[322907306,1713492649294,-500.0,0.00016438,2]
[322907307,1713492649304,-1446.78,0.00016438,2]
[322907308,1713492649313,-500.0,0.00016438,2]
[322907309,1713492649323,-819.07,0.00016438,2]
[322907310,1713492649333,-1733.06,0.00016438,2]
[322907311,1713492649342,-555.10059383,0.00016438,2]
[322907312,1713492649351,-1673.51,0.00016438,2]
[322907313,1713492649360,-500.0,0.00016438,2]
[322907314,1713492649369,-1142.03,0.00016438,2]
[322907315,1713492649378,-500.0,0.00016438,2]
[322907316,1713492649388,-500.0,0.00016438,2]
[322907317,1713492649397,-1811.92,0.00016438,2]
[322907318,1713492649407,-500.0,0.00016438,2]
[322907319,1713492649416,-2065.39,0.00016438,2]
[322907320,1713492649425,-500.0,0.00016438,2]
[322907321,1713492649434,-500.0,0.00016438,2]
[322907322,1713492649443,-387.70720324,0.00016438,2]
[322907323,1713492649453,-914.23,0.00016438,2]
[322907324,1713492649462,-2900.51,0.00016438,2]
[322907325,1713492649471,-232.30606583,0.00016438,2]
[322907326,1713492649480,-500.0,0.00016438,2]
[322907327,1713492649489,-500.0,0.00016438,2]
[322907328,1713492649498,-500.0,0.00016438,2]
[322907329,1713492649507,-500.0,0.00016438,2]
[322907330,1713492649516,-500.0,0.00016438,2]
[322907331,1713492649526,-4537.21,0.00016438,2]
[322907332,1713492649535,-500.0,0.00016438,2]
[322907333,1713492649544,-500.0,0.00016438,2]
[322907334,1713492649554,-500.0,0.00016438,2]
[322907335,1713492649562,-1081.63,0.00016438,2]
[322907336,1713492649571,-6047.12,0.00016438,2]
[322907337,1713492649580,-500.0,0.00016438,2]
[322907338,1713492649590,-2225.63,0.00016438,2]
[322907339,1713492649599,-500.0,0.00016438,2]
[322907340,1713492649608,-1390.42,0.00016438,2]
[322907341,1713492649618,-500.0,0.00016438,2]
[322907342,1713492649627,-500.0,0.00016438,2]
[322907343,1713492649640,-2979.8,0.00016438,2]
[322907344,1713492649649,-500.0,0.00016438,2]
[322907345,1713492649658,-500.0,0.00016438,2]
[322907346,1713492649667,-500.0,0.00016438,2]
[322907347,1713492649675,-1066.07,0.00016438,2]
[322907348,1713492649684,-500.0,0.00016438,2]
[322907349,1713492649694,-500.0,0.00016438,2]
[322907350,1713492649703,-516.67885092,0.00016438,2]
[322907351,1713492649713,-958.06,0.00016438,2]
[322907352,1713492649722,-504.08974197,0.00016438,2]
[322907353,1713492649731,-500.0,0.00016438,2]
[322907354,1713492649740,-870.62,0.00016438,2]
[322907355,1713492649750,-3091.22,0.00016438,2]
[322907356,1713492649759,-3367.47,0.00016438,2]
[322907357,1713492649768,-1391.98,0.00016438,2]
[322907358,1713492649777,-500.0,0.00016438,2]
[322907359,1713492649786,-2121.86,0.00016438,2]
[322907360,1713492649795,-500.0,0.00016438,2]
[322907361,1713492649805,-500.0,0.00016438,2]
[322907362,1713492649814,-3042.51,0.00016438,2]
[322907363,1713492649823,-500.0,0.00016438,2]
[322907364,1713492649833,-497.07644,0.00016438,2]
[322907365,1713492649842,-500.0,0.00016438,2]
[322907366,1713492649851,-779.76,0.00016438,2]
[322907367,1713492649861,-500.0,0.00016438,2]
[322907368,1713492649870,-515.46,0.00016438,2]
[322907369,1713492649879,-2859.8,0.00016438,2]
[322907370,1713492649892,-500.0,0.00016438,2]
[322907371,1713492649902,-500.0,0.00016438,2]
[322907372,1713492649911,-500.0,0.00016438,2]
[322907373,1713492649922,-1903.37,0.00016438,2]
[322907374,1713492649931,-500.0,0.00016438,2]
[322907375,1713492649941,-1476.63,0.00016438,2]
[322907376,1713492649950,-3199.64,0.00016438,2]
[322907377,1713492649962,-716.03,0.00016438,2]
[322907378,1713492649972,-500.0,0.00016438,2]
[322907379,1713492649982,-500.0,0.00016438,2]
[322907380,1713492649991,-500.0,0.00016438,2]
[322907381,1713492650001,-556.42,0.00016438,2]
[322907382,1713492650011,-500.0,0.00016438,2]
[322907383,1713492650021,-923.08,0.00016438,2]
[322907384,1713492650030,-1661.89,0.00016438,2]
[322907385,1713492650040,-500.0,0.00016438,2]
[322907386,1713492650050,-500.0,0.00016438,2]
[322907387,1713492650059,-495.0,0.00016438,2]
[322907388,1713492650069,-1983.22,0.00016438,2]
[322907389,1713492650079,-1064.94,0.00016438,2]
[322907390,1713492650088,-500.0,0.00016438,2]
[322907391,1713492650097,-500.0,0.00016438,2]
[322907392,1713492650107,-1789.98,0.00016438,2]
[322907393,1713492650116,-500.0,0.00016438,2]
[322907394,1713492650126,-1478.65,0.00016438,2]
[322907395,1713492650139,-950.11,0.00016438,2]
[322907396,1713492650150,-500.0,0.00016438,2]
[322907397,1713492650159,-1235.99,0.00016438,2]
[322907398,1713492650169,-500.0,0.00016438,2]
[322907399,1713492650179,-14831.07,0.00016438,2]
[322907400,1713492650189,-507.71768919,0.00016438,2]
[322907401,1713492650198,-2204.56,0.00016438,2]
[322907402,1713492650208,-500.0,0.00016438,2]
[322907403,1713492650217,-1154.71,0.00016438,2]
[322907404,1713492650227,-500.0,0.00016438,2]
[322907405,1713492650237,-4639.74,0.00016438,2]
[322907406,1713492650248,-500.0,0.00016438,2]
[322907407,1713492650258,-500.0,0.00016438,2]
[322907408,1713492650268,-496.98263949,0.00016438,2]
[322907409,1713492650277,-622.75,0.00016438,2]
[322907410,1713492650286,-1040.61,0.00016438,2]
[322907411,1713492650296,-914.98,0.00016438,2]
[322907412,1713492650306,-500.0,0.00016438,2]
[322907413,1713492650316,-608.71,0.00016438,2]
[322907414,1713492650325,-500.0,0.00016438,2]
[322907415,1713492650335,-833.25,0.00016438,2]
[322907416,1713492650345,-963.97,0.00016438,2]
[322907417,1713492650354,-500.0,0.00016438,2]
[322907418,1713492650363,-500.0,0.00016438,2]
[322907419,1713492650373,-500.0,0.00016438,2]
[322907420,1713492650383,-500.0,0.00016438,2]
[322907421,1713492650396,-500.0,0.00016438,2]
[322907422,1713492650406,-1479.87,0.00016438,2]
[322907423,1713492650415,-500.0,0.00016438,2]
[322907424,1713492650425,-3818.09,0.00016438,2]
[322907425,1713492650435,-500.0,0.00016438,2]
[322907426,1713492650446,-994.83,0.00016438,2]
[322907427,1713492650455,-3021.56,0.00016438,2]
[322907428,1713492650465,-473.05916633,0.00016438,2]
[322907429,1713492650475,-500.0,0.00016438,2]
[322907430,1713492650485,-3638.92,0.00016438,2]
[322907431,1713492650495,-500.0,0.00016438,2]
[322907432,1713492650505,-712.08,0.00016438,2]
[322907433,1713492650515,-500.0,0.00016438,2]
[322907434,1713492650526,-500.0,0.00016438,2]
[322907435,1713492650536,-697.77,0.00016438,2]
[322907436,1713492650546,-1257.62,0.00016438,2]
[322907437,1713492650556,-645.83,0.00016438,2]
[322907438,1713492650565,-1317.67,0.00016438,2]
[322907439,1713492650575,-833.69,0.00016438,2]
[322907440,1713492650585,-518.22935953,0.00016438,2]
[322907441,1713492650595,-500.0,0.00016438,2]
[322907442,1713492650605,-1554.6,0.00016438,2]
[322907443,1713492650614,-500.0,0.00016438,2]
[322907444,1713492650624,-500.0,0.00016438,2]
[322907445,1713492650633,-500.0,0.00016438,2]
[322907446,1713492650648,-1638.16,0.00016438,2]
[322907447,1713492650658,-8053.16,0.00016438,2]
[322907448,1713492650668,-500.0,0.00016438,2]
[322907449,1713492650678,-150.0,0.00016438,2]
[322907450,1713492650688,-500.0,0.00016438,2]
[322907451,1713492650697,-1166.99,0.00016438,2]
[322907452,1713492650707,-500.0,0.00016438,2]
[322907453,1713492650717,-500.0,0.00016438,2]
[322907454,1713492650727,-4917.31,0.00016438,2]
[322907455,1713492650737,-728.47,0.00016438,2]
[322907456,1713492650747,-500.0,0.00016438,2]
[322907457,1713492650756,-4741.53,0.00016438,2]
[322907458,1713492650766,-500.0,0.00016438,2]
[322907459,1713492650776,-1057.68,0.00016438,2]
[322907460,1713492650786,-2498.61,0.00016438,2]
[322907461,1713492650795,-500.0,0.00016438,2]
[322907462,1713492650805,-500.0,0.00016438,2]
[322907463,1713492650815,-500.0,0.00016438,2]
[322907464,1713492650825,-1858.76,0.00016438,2]
[322907465,1713492650835,-1592.37,0.00016438,2]
[322907466,1713492650845,-500.0,0.00016438,2]
[322907467,1713492650855,-500.0,0.00016438,2]
[322907468,1713492650865,-500.0,0.00016438,2]
[322907469,1713492650875,-6579.58,0.00016438,2]
[322907470,1713492650890,-500.0,0.00016438,2]
[322907471,1713492650902,-500.0,0.00016438,2]
[322907472,1713492650912,-500.0,0.00016438,2]
[322907473,1713492650923,-1831.48,0.00016438,2]
[322907474,1713492650933,-2951.18,0.00016438,2]
[322907475,1713492650943,-500.0,0.00016438,2]
[322907476,1713492650953,-507.69370441,0.00016438,2]
[322907477,1713492650964,-2379.51,0.00016438,2]
[322907478,1713492650975,-1217.66,0.00016438,2]
[322907479,1713492650985,-500.0,0.00016438,2]
[322907480,1713492650995,-854.12,0.00016438,2]
[322907481,1713492651006,-500.0,0.00016438,2]
[322907482,1713492651017,-532.63,0.00016438,2]
[322907483,1713492651027,-1007.7,0.00016438,2]
[322907484,1713492651037,-500.0,0.00016438,2]
[322907485,1713492651048,-500.0,0.00016438,2]
[322907486,1713492651057,-500.0,0.00016438,2]
[322907487,1713492651068,-500.0,0.00016438,2]
[322907488,1713492651078,-1039.28,0.00016438,2]
[322907489,1713492651089,-500.0,0.00016438,2]
[322907490,1713492651099,-500.0,0.00016438,2]
[322907491,1713492651109,-7416.26,0.00016438,2]
[322907492,1713492651119,-879.82,0.00016438,2]
[322907493,1713492651130,-500.0,0.00016438,2]
[322907494,1713492651148,-500.0,0.00016438,2]
[322907495,1713492651158,-500.0,0.00016438,2]
[322907496,1713492651168,-500.0,0.00016438,2]
[322907497,1713492651179,-15367.78,0.00016438,2]
[322907498,1713492651189,-578.57,0.00016438,2]
[322907499,1713492651200,-500.0,0.00016438,2]
[322907500,1713492651210,-500.0,0.00016438,2]
[322907501,1713492651220,-980.46,0.00016438,2]
[322907502,1713492651231,-500.0,0.00016438,2]
[322907503,1713492651240,-500.0,0.00016438,2]
[322907504,1713492651250,-500.0,0.00016438,2]
[322907505,1713492651262,-2796.2,0.00016438,2]
[322907506,1713492651272,-500.0,0.00016438,2]
[322907507,1713492651283,-1092.06,0.00016438,2]
[322907508,1713492651293,-299.97548392,0.00016438,2]
[322907509,1713492651304,-2295.75,0.00016438,2]
[322907510,1713492651314,-500.0,0.00016438,2]
[322907511,1713492651324,-1932.0,0.00016438,2]
[322907512,1713492651335,-1501.99,0.00016438,2]
[322907513,1713492651345,-500.0,0.00016438,2]
[322907514,1713492651355,-393.41,0.00016438,2]
[322907515,1713492651365,-500.0,0.00016438,2]
[322907516,1713492651375,-500.0,0.00016438,2]
[322907517,1713492651385,-500.0,0.00016438,2]
[322907518,1713492651398,-500.0,0.00016438,2]
[322907519,1713492651408,-500.0,0.00016438,2]
[322907520,1713492651417,-722.23,0.00016438,2]
[322907521,1713492651427,-500.0,0.00016438,2]
[322907522,1713492651437,-500.0,0.00016438,2]
[322907523,1713492651447,-2841.77,0.00016438,2]
[322907524,1713492651457,-500.0,0.00016438,2]
[322907525,1713492651468,-96114.18,0.00016438,2]
[322907526,1713492651478,-1256.54,0.00016438,2]
[322907527,1713492651488,-1296.68,0.00016438,2]
[322907528,1713492651498,-1217.04,0.00016438,2]
[322907529,1713492651509,-6036.36,0.00016438,2]
[322907530,1713492651519,-3955.36,0.00016438,2]
[322907531,1713492651530,-500.0,0.00016438,2]
[322907532,1713492651540,-9911.94,0.00016438,2]
[322907533,1713492651550,-500.0,0.00016438,2]
[322907534,1713492651560,-500.0,0.00016438,2]
[322907535,1713492651570,-500.0,0.00016438,2]
[322907536,1713492651581,-763.9,0.00016438,2]
[322907537,1713492651591,-500.0,0.00016438,2]
[322907538,1713492651602,-782.17,0.00016438,2]
[322907539,1713492651613,-2803.57,0.00016438,2]
[322907540,1713492651623,-707.68,0.00016438,2]
[322907541,1713492651634,-500.0,0.00016438,2]
[322907542,1713492651651,-500.0,0.00016438,2]
[322907543,1713492651663,-500.0,0.00016438,2]
[322907544,1713492651673,-260.84441308,0.00016438,2]
[322907545,1713492651683,-500.0,0.00016438,2]
[322907546,1713492651693,-500.0,0.00016438,2]
[322907547,1713492651703,-2080.08,0.00016438,2]
[322907548,1713492651713,-500.0,0.00016438,2]
[322907549,1713492651723,-9733.62,0.00016438,2]
[322907550,1713492651733,-500.0,0.00016438,2]
[322907551,1713492651742,-500.0,0.00016438,2]
[322907552,1713492651752,-500.0,0.00016438,2]
[322907553,1713492651762,-2967.14,0.00016438,2]
[322907554,1713492651771,-500.0,0.00016438,2]
[322907555,1713492651781,-2034.15,0.00016438,2]
[322907556,1713492651790,-500.0,0.00016438,2]
[322907557,1713492651800,-506.52,0.00016438,2]
[322907558,1713492651809,-367.71400079,0.00016438,2]
[322907559,1713492651818,-540.74013701,0.00016438,2]
[322907560,1713492651828,-500.0,0.00016438,2]
[322907561,1713492651838,-500.0,0.00016438,2]
[322907562,1713492651848,-500.0,0.00016438,2]
[322907563,1713492651859,-3967.9,0.00016438,2]
[322907564,1713492651868,-288.03421983,0.00016438,2]
[322907565,1713492651878,-500.0,0.00016438,2]
[322907566,1713492651894,-500.0,0.00016438,2]
[322907567,1713492651904,-500.0,0.00016438,2]
[322907568,1713492651914,-498.09395015,0.00016438,2]
[322907569,1713492651925,-1490.29,0.00016438,2]
[322907570,1713492651935,-5000.0,0.00016438,2]
[322907571,1713492651944,-500.0,0.00016438,2]
[322907572,1713492651954,-500.0,0.00016438,2]
[322907573,1713492651964,-500.0,0.00016438,2]
[322907574,1713492651974,-500.0,0.00016438,2]
[322907575,1713492651984,-2023.49,0.00016438,2]
[322907576,1713492651993,-261.97227436,0.00016438,2]
[322907577,1713492652004,-5859.86,0.00016438,2]
[322907578,1713492652013,-3351.73,0.00016438,2]
[322907579,1713492652023,-500.0,0.00016438,2]
[322907580,1713492652033,-808.61,0.00016438,2]
[322907581,1713492652043,-500.0,0.00016438,2]
[322907582,1713492652053,-502.58,0.00016438,2]
[322907583,1713492652063,-500.0,0.00016438,2]
[322907584,1713492652073,-519.43709655,0.00016438,2]
[322907585,1713492652083,-1006.0,0.00016438,2]
[322907586,1713492652093,-2161.29,0.00016438,2]
[322907587,1713492652103,-591.88,0.00016438,2]
[322907588,1713492652113,-3758.99,0.00016438,2]
[322907589,1713492652122,-500.0,0.00016438,2]
[322907590,1713492652133,-1121.89,0.00016438,2]
[322907591,1713492652152,-500.0,0.00016438,2]
[322907592,1713492652162,-1156.98,0.00016438,2]
[322907593,1713492652171,-500.0,0.00016438,2]
[322907594,1713492652182,-3404.94,0.00016438,2]
[322907595,1713492652192,-8002.52,0.00016438,2]
[322907596,1713492652203,-500.0,0.00016438,2]
[322907597,1713492652214,-500.0,0.00016438,2]
[322907598,1713492652225,-500.0,0.00016438,2]
[322907599,1713492652236,-500.0,0.00016438,2]
[322907600,1713492652248,-606.98,0.00016438,2]
[322907601,1713492652261,-2138.43,0.00016438,2]
[322907602,1713492652277,-500.0,0.00016438,2]
[322907603,1713492652288,-2625.32,0.00016438,2]
[322907604,1713492652298,-500.0,0.00016438,2]
[322907605,1713492652308,-2430.43,0.00016438,2]
[322907606,1713492652319,-500.0,0.00016438,2]
[322907607,1713492652329,-6218.46,0.00016438,2]
[322907608,1713492652340,-985.79,0.00016438,2]
[322907609,1713492652350,-1242.15,0.00016438,2]
[322907610,1713492652360,-31093.85,0.00016438,2]
[322907611,1713492652370,-998.46,0.00016438,2]
[322907612,1713492652379,-931.43,0.00016438,2]
[322907613,1713492652394,-500.0,0.00016438,2]
[322907614,1713492652405,-500.0,0.00016438,2]
[322907615,1713492652415,-1294.79,0.00016438,2]
[322907616,1713492652426,-2043.95,0.00016438,2]
[322907617,1713492652435,-500.0,0.00016438,2]
[322907618,1713492652445,-500.0,0.00016438,2]
[322907619,1713492652455,-500.0,0.00016438,2]
[322907620,1713492652465,-1108.54,0.00016438,2]
[322907621,1713492652475,-9420.77,0.00016438,2]
[322907622,1713492652485,-500.0,0.00016438,2]
[322907623,1713492652495,-8696.67,0.00016438,2]
[322907624,1713492652505,-3053.93,0.00016438,2]
[322907625,1713492652515,-500.0,0.00016438,2]
[322907626,1713492652524,-500.0,0.00016438,2]
[322907627,1713492652534,-1349.63,0.00016438,2]
[322907628,1713492652544,-500.0,0.00016438,2]
[322907629,1713492652554,-1358.13,0.00016438,2]
[322907630,1713492652563,-500.0,0.00016438,2]
[322907631,1713492652573,-500.0,0.00016438,2]
[322907632,1713492652583,-500.0,0.00016438,2]
[322907633,1713492652593,-500.0,0.00016438,2]
[322907634,1713492652603,-500.0,0.00016438,2]
[322907635,1713492652613,-1848.25,0.00016438,2]
[322907636,1713492652623,-500.0,0.00016438,2]
[322907637,1713492652634,-5931.53,0.00016438,2]
[322907638,1713492652654,-3798.56,0.00016438,2]
[322907639,1713492652664,-588.58,0.00016438,2]
[322907640,1713492652674,-6948.89,0.00016438,2]
[322907641,1713492652684,-3636.65,0.00016438,2]
[322907642,1713492652693,-1329.35,0.00016438,2]
[322907643,1713492652703,-500.0,0.00016438,2]
[322907644,1713492652734,-500.0,0.00016438,2]
[322907645,1713492652756,-500.0,0.00016438,2]
[322907646,1713492652767,-500.0,0.00016438,2]
[322907647,1713492652777,-1011.45,0.00016438,2]
[322907648,1713492653088,-551.64,0.00016438,2]
[322907649,1713492653098,-623.72,0.00016438,2]
[322907650,1713492653108,-14857.19,0.00016438,2]
[322907651,1713492653118,-500.0,0.00016438,2]
[322907652,1713492653128,-1999.77,0.00016438,2]
[322907653,1713492653141,-2158.41,0.00016438,2]
[322907654,1713492653153,-500.0,0.00016438,2]
[322907655,1713492653163,-601.41,0.00016438,2]